Cogmind - Beta 15 @@@ ROGUE MODE // 2025.08.18 @ 11:38:01 Player: SadBl0ckBoy Result: Destroyed by S-10 Pest with Light Assault Rifle Performance ------------- Evolutions (0) 0 Regions Visited (1) 200 Robots Destroyed (10) 50 Value Destroyed (306) 306 Prototype IDs (0) 0 Alien Tech Used (0) 0 Bonus (0) 0 TOTAL SCORE: 556 Bonus ------- None Cogmind --------- Core Integrity 0/250 Matter 116/500 Energy 123/125 System Corruption 0% Temperature Cool (35) Movement Treading (160) Location -10/Materials Parts ------- > --- POWER (1) -------- Light Ion Engine > --- PROPULSION (2) --- Light Treads > --- UTILITY (2) ------ High-capacity Matter Pod > --- WEAPON (2) ------- Mining Laser > --- INVENTORY (5) ---- Visual Processing Unit Assault Rifle Peak State ------------ > --- POWER ------------ Light Ion Engine > --- PROPULSION ------- Aluminum Leg Aluminum Leg > --- UTILITY ---------- Heat Sink Seismic Detector > --- WEAPON ----------- Medium Laser Assault Rifle > --- INVENTORY -------- Mining Laser [Rating: 7] Favorites ----------- Power Light Ion Engine Engine Light Ion Engine Propulsion Aluminum Leg Treads Light Treads Leg Aluminum Leg Utility Seismic Detector Device Seismic Detector Storage High-capacity Matter Pod Weapon Assault Rifle Energy Gun Medium Laser Ballistic Gun Assault Rifle Ballistic Cannon Light Cannon Special Weapon Mining Laser Build | -11 -10 ------- Run | Yrd Mat Slots Evolved . | . . Power . | . . Propulsion . | . . Utility . | . . Weapon . | . . Parts Attached 13 | 8 5 Power 1 | 1 . Engine 1 | 1 . Core . | . . Reactor . | . . Propulsion 3 | 2 1 Treads 1 | . 1 Leg 2 | 2 . Wheel . | . . Hover . | . . Flight . | . . Utility 3 | 2 1 Device 2 | 2 . Storage 1 | . 1 Processor . | . . Hackware . | . . Protection . | . . Artifact . | . . Weapon 6 | 3 3 Energy Gun 1 | 1 . Energy Cannon . | . . Ballistic Gun 1 | 1 . Ballistic Cannon 2 | . 2 Launcher . | . . Special Weapon 2 | 1 1 Impact Weapon . | . . Slashing Weapon . | . . Piercing Weapon . | . . Special Melee Weapon . | . . Unidentified Prototypes . | . . Parts Lost 6 | . 6 Power . | . . Propulsion 2 | . 2 Utility 1 | . 1 Weapon 3 | . 3 Highest Loss Streak 3 | . 3 To Critical Strikes . | . . Average Backups 1 | . 2 Power . | . . Propulsion . | . . Utility . | . . Weapon . | . . Tool/Special . | . . Unused Backups 1 | . 1 Power . | . . Propulsion . | . . Utility 1 | . 1 Weapon . | . . Tool/Special . | . . Average Slot Usage (%) 97 | . 97 Engine 14 | . 14 Treads 5 | . 5 Leg 21 | . 21 Device 19 | . 19 Storage 8 | . 8 Ballistic Gun 10 | . 10 Ballistic Cannon 7 | . 7 Special Weapon 8 | . 8 Peak Build Rating 7 | 7 7 Average Rating 6 | 5 6 On Entrance 3 | . 7 Naked Turns . | . . Heaviest Build 14 | 9 14 Greatest Support 20 | 20 20 Greatest Overweight (x) 1 | . 1 Average Overweight (x) . | . . Largest Inventory Capacity 5 | 5 5 Average Capacity 5 | 5 5 Most Carried 5 | 4 5 Average Carried 1 | . 2 Final Capacity 5 | 5 5 Final Carried 2 | . 2 Class Distribution -------------------- 100% | Mutant Dominant Class ---------------- Mutant | -10/Materials Resources | -11 -10 ----------- Run | Yrd Mat Matter Collected 359 | 271 88 Remotely . | . . Salvage Created 249 | 88 161 Parts 14 | 8 6 Haulers Intercepted . | . . Recyclers Shooed . | . . Parts Field Recycled . | . . Retrieved Matter . | . . Parts Self-Destructed . | . . Prevented . | . . Kills | -11 -10 ------- Run | Yrd Mat Combat Hostiles Destroyed 8 | 1 7 Guns 1 | 1 . Cannons 7 | . 7 Classes Destroyed 3 | 3 . Worker 1 | 1 . Tunneler 1 | 1 . Grunt 8 | 1 7 Best Kill Streak 4 | 1 4 Combat Bots Only 4 | 1 4 Max Kills in Single Turn 1 | 1 1 Gunslinging . | . . Exploded . | . . Melee . | . . Uniques/NPCs Destroyed . | . . Combat | -11 -10 -------- Run | Yrd Mat Hostile Shots Fired 123 | 2 121 Missed 45 | 1 44 Hits 78 | 1 77 Projectile 78 | 1 77 Critical Strikes 1 | . 1 Damage Taken 986 | 12 974 Core 256 | . 256 Absorbed by Shields . | . . Core Remaining (%) 100 | 100 . Volleys Fired 42 | 5 37 Largest 2 | 2 2 Hottest 200 | 70 200 Shots Fired 73 | 10 63 Gun 30 | 10 20 Cannon 37 | . 37 Launcher . | . . Special 6 | . 6 Kinetic 62 | 5 57 Thermal 11 | 5 6 Explosive . | . . Electromagnetic . | . . Robot Hit Streak 7 | 2 7 Robot Miss Streak 5 | 3 5 Penetration Max . | . . Secondary Targets . | . . Shots Hit Robots 36 | 5 31 Core Hits 17 | 4 13 Critical Kills . | . . Critical Parts Destroyed . | . . Critical Strikes 1 | . 1 Blast 1 | . 1 Melee Attacks . | . . Impact . | . . Slashing . | . . Piercing . | . . Sneak Attacks . | . . Combat Hostiles . | . . Follow-up Attacks . | . . Damage Inflicted 658 | 65 593 Guns 212 | 65 147 Cannons 374 | . 374 Explosions . | . . Melee . | . . Ramming . | . . Kinetic 560 | 39 521 Thermal 98 | 26 72 Explosive . | . . Electromagnetic . | . . Impact . | . . Slashing . | . . Piercing . | . . Highest Corruption . | . . Average Corruption . | . . Corruption Purged . | . . Corruption Blocked . | . . Overload Shots . | . . Overflow Damage . | . . Projectiles . | . . Explosions . | . . Melee . | . . Knockbacks 9 | . 9 Impact . | . . Kinetic 8 | . 8 Secondary 1 | . 1 Self-Inflicted Damage . | . . Shots . | . . Rammed . | . . Targets Rammed . | . . Kicked . | . . Crushed . | . . Highest Temperature 189 | 24 189 Average Temperature 49 | 11 54 Received Heat Transfer 558 | 6 552 Siege Activations . | . . Martial Activations . | . . Shielding Activations . | . . Robots Disrupted . | . . Combat Hostiles . | . . Robots Corrupted . | . . Combat Hostiles . | . . Parts Fried . | . . Impact Corruptions . | . . Robots Melted . | . . Combat Hostiles . | . . Parts Melted . | . . Heat Transferred 224 | 74 150 Parts Sabotaged . | . . Parts Stolen . | . . Parts Stripped . | . . Power Chain Reactions . | . . Alert | -11 -10 ------- Run | Yrd Mat Maximum Alert Level . | . . Low Security (%) 100 | 100 100 Level 1 . | . . Level 2 . | . . Level 3 . | . . Level 4 . | . . Level 5 . | . . High Security . | . . Max Security . | . . Peak Influence 60 | 20 60 Initial . | . . Average 12 | 1 17 Influence Increases 232 | 30 202 Destroy 0b10 Robot/C 160 | 20 140 Destroy 0b10 Robot/NC 10 | 10 . Destroy Leader 30 | . 30 Destroy Structure 2 | . 2 Lose Combat Pursuer 30 | . 30 Influence Decreases 192 | 30 162 Time Decay 132 | 30 102 Lost Part 60 | . 60 Squads Dispatched 1 | . 1 Investigation . | . . Extermination . | . . Reinforcement 1 | . 1 Assault . | . . Garrison . | . . Intercept . | . . Searches Triggered . | . . Construction Impeded . | . . Haulers Reinforced . | . . Active Scanning Responses . | . . Cargo Convoy Interrupts . | . . Stealth | -11 -10 --------- Run | Yrd Mat Distress Signals 1 | . 1 Communications Jammed . | . . Distress Signals . | . . Times Spotted 17 | 1 16 Peak Tracking Total 7 | 1 7 Tactical Retreats 2 | . 2 Traps | -11 -10 ------- Run | Yrd Mat Traps Triggered . | . . Indirectly . | . . Trap Hack Attempts . | . . Triggered . | . . Disarmed . | . . Reprogrammed . | . . Reused . | . . Traps Extracted . | . . Installed . | . . Triggered . | . . Machines | -11 -10 ---------- Run | Yrd Mat Machines Disabled . | . . Max in Single Turn . | . . Machines Repaired . | . . Machines Dismantled . | . . Machines Sabotaged . | . . Overloaded Fab Kills . | . . Hacking | -11 -10 --------- Run | Yrd Mat Machines Accessed . | . . Terminals . | . . Fabricators . | . . Repair Stations . | . . Recycling Units . | . . Scanalyzers . | . . Garrison Access . | . . Total Hacks . | . . Successful . | . . Failed . | . . Catastrophic . | . . Database Lockouts . | . . Manual . | . . Terminals . | . . Fabricators . | . . Repair Stations . | . . Recycling Units . | . . Scanalyzers . | . . Garrison Access . | . . Terminal Hacks . | . . Fabricator Hacks . | . . Repair Station Hacks . | . . Recycling Unit Hacks . | . . Scanalyzer . | . . Garrison Access Hacks . | . . Unauthorized Hacks . | . . Terminals . | . . Fabricators . | . . Repair Stations . | . . Recycling Units . | . . Scanalyzers . | . . Garrison Access . | . . Data Cores Recovered . | . . Used . | . . Hacking Detections . | . . Full Trace Events . | . . Feedback Events . | . . Feedback Blocked . | . . Robot Schematics Acquired . | . . Robots Built . | . . Authchips . | . . Time . | . . Total Robot Build Rating . | . . Part Schematics Acquired . | . . Parts Built . | . . Authchips . | . . Time . | . . Total Part Build Rating . | . . Parts Repaired . | . . Time . | . . Parts Recycled . | . . Recycled Matter . | . . Retrieved Matter . | . . Retrieved Components . | . . Parts Scanalyzed . | . . Part Schematics Acquired . | . . Parts Damaged . | . . Bothacking | -11 -10 ------------ Run | Yrd Mat Used RIF Installer . | . . Robots Hacked . | . . Non-combat . | . . Combat . | . . Robot Hacks Applied . | . . Relay Couplers Released . | . . Fabnet Peak Effective % . | . . Robots Rewired . | . . Allies Hacked . | . . Hacks Repelled . | . . Allies | -11 -10 -------- Run | Yrd Mat Total Allies . | . . Largest Group . | . . Highest-Rated Group . | . . Highest-Rated Ally . | . . Total Orders . | . . Ally Attacks . | . . Total Damage . | . . Kills . | . . Allies Corrupted . | . . Allies Melted . | . . Intel | -11 -10 ------- Run | Yrd Mat Active Infowar (turns) 465 | 18 447 Seismic 465 | 18 447 Robot Analysis Total . | . . Derelict Logs Recovered . | . . Drone Launches . | . . Drone Recoveries . | . . Exploration | -11 -10 ------------- Run | Yrd Mat Turns Passed 688 | 226 462 Spaces Moved 354 | 103 251 Core 38 | 38 . Treads 83 | . 83 Legs 233 | 65 168 Wheels . | . . Hover . | . . Flight . | . . Fastest Speed 50 | 50 120 Average Speed 122 | 94 133 Slowest Speed 190 | 120 190 Overloaded Moves . | . . Propulsion Burnouts . | . . Robots Hopped . | . . Potential Cave-ins . | . . Cave-ins Triggered . | . . Exploration Rate (%) 24 | 8 41 Regions Visited 1 Branch Regions . Pre-discovered Areas . | . . Known Exits Taken . | . . Unknown Exits Taken 1 | 1 . Scrap Searched . | . . Spaces Dug . | . . Terrain Destroyed 2 | . 2 Melee . | . . Projectile 2 | . 2 AOE . | . . Terrain Rammed . | . . Walls Destroyed . | . . Machines Disabled . | . . Actions | -11 -10 --------- Run | Yrd Mat Total 525 | 222 303 Wait 99 | 98 1 Move 353 | 102 251 Hop . | . . Pick Up 14 | 8 6 Fast Attach . | . . Attach 12 | 8 4 Detach . | . . Swap 3 | . 3 Drop 2 | 1 1 Fire 42 | 5 37 Melee . | . . Ram . | . . Kick . | . . Crush . | . . Escape Stasis . | . . Rewire . | . . Trap . | . . Miscellaneous . | . . Route ------- -11/Scrapyard -10/Materials (discovered 2 exits: [*Min] / [*Sub]) History --------- Turn | Location | Event 2 | -11/Scrapyard | Met Revision 17 65 | -11/Scrapyard | Discovered new exit (range 8) 227 | -11/Scrapyard | Entered Materials 228 | -10/Materials | Met a group of wandering Federalists 267 | -10/Materials | Discovered new exit (range 9) 303 | -10/Materials | Build established: Mutant 530 | -10/Materials | Discovered new exit (range 10) 619 | -10/Materials | Core integrity fell below 50% 656 | -10/Materials | Core integrity fell below 20% 689 | -10/Materials | Destroyed by S-10 Pest with Light Assault Rifle Last Messages --------------- Lgt. Cannon destroyed. K-01 Serf cleans the Material Processor. G-34 Mercenary destroyed. Acquired 20 matter. K-01 Serf collects debris. Aluminum Leg destroyed. K-01 Serf collects debris. G-47 Trooper destroyed. K-01 Serf collects debris. U-05 Engineer builds a Wall. Seismic Detector destroyed. G-34 Mercenary destroyed. K-01 Serf collects debris. U-05 Engineer builds a Wall. K-01 Serf collects debris. R-06 Scavenger collects Imp. Heat Sink. R-06 Scavenger collects Aluminum Leg. K-01 Serf collects debris. Mining Laser destroyed. K-01 Serf collects debris. Map ----- +----------------------------------------------------+ | ?????# ? #??????? #??????????????????????? | | ?????# ??? #??????? #?????? ???????????????? | | ?????# ???? +??????? #????? "???????????????? | | ?????# #?????# #??????? #???? "???????????????? | | ???### ####### #??????? ##### """?????????????? | | ???# # = # ######## ! ?????????????? | | ???# + # ?????????????? | | ???# # ! + ?????????????? | | ???#%% #% # ????????????? | | ???# ####### ??????????????? | | #### %^ % ^ ###????????????????????? | | ## #??????????????????????? | | ## % T #??????????????????????? | | ## ^ % #??????????????????????? | | ## ### ^ k k#??????????????????????? | | ## #?# ## ####???????????????????? | | ## #?# # """#???????????????????? | | ## #?# # "#???????????????????? | | ## ### # "#???????????????????? | | ### ## ^ # < ""#???????????????????? | | ## """ # % !"#???????????????????? | | T ## """"" # "#???????????????????? | | ## """"" # """#???????????????????? | | ### ## """"" ## ####?######????????????? | | # ##### """ ur ##### #######??????? | | # #???# @ w ???? | | # #???# k s "% ???? | | " # #???# % ss ???? | | # #?????### #########+###### ######???????? | | # #??????????????# ###+###????????????? | | # %#??????????????# #??? ?????????????? | | ### #??????????????# #???? ""???????????? | | #??????????????# """ """ #??????""??????????? | | +??????????????# """ """ #???????"??????????? | | ## ###??????????????# """ """ #??????????????????? | | # #???????????????# #??????????????????? | | ## ##???????????????# * #??????????????????? | | ## #????????????????###########??????????????????? | | ## #?????????????????????????????????????????????? | | ## #?????????????????????????????????????????????? | | ## #?????????????????????????????????????????????? | | ###